[Event "Titled Tuesday Blitz July 26 Early 2022"]
[White "Rustemov, Alexander"]
[Black "Le, Tuan Minh"]
[WhiteFideId "4119002"]
[BlackFideId "12401153"]
[WhiteElo "2812"]
[BlackElo "2530"]
[Result "0-1"]
[Round "09"]
[TimeControl "180+1"]
[Date "2022.07.26"]
[WhiteClock "0:00:02"]
[BlackClock "0:00:08"]

1. d4 {[%clk 0:03:00]}  d5 {[%clk 0:03:00]} 2. c4 {[%clk 0:03:01]}  c6 {[%clk 0:03:00]} 3. Nc3 {[%clk 0:03:01]}  Nf6 {[%clk 0:02:59]} 4. e3 {[%clk 0:03:00]}  a6 {[%clk 0:02:59]} 5. Qc2 {[%clk 0:03:00]}  Bg4 {[%clk 0:02:57]} 6. Bd3 {[%clk 0:02:53]}  e6 {[%clk 0:02:56]} 7. b3 {[%clk 0:02:44]}  Nbd7 {[%clk 0:02:54]} 8. Bb2 {[%clk 0:02:43]}  Bd6 {[%clk 0:02:53]} 9. Nge2 {[%clk 0:02:39]}  Bh5 {[%clk 0:02:53]} 10. f3 {[%clk 0:02:34]}  Bg6 {[%clk 0:02:53]} 11. O-O-O {[%clk 0:02:33]}  b5 {[%clk 0:02:44]} 12. c5 {[%clk 0:02:32]}  Bc7 {[%clk 0:02:38]} 13. h4 {[%clk 0:02:25]}  b4 {[%clk 0:02:25]} 14. Na4 {[%clk 0:02:23]}  a5 {[%clk 0:02:25]} 15. g4 {[%clk 0:02:22]}  Bxd3 {[%clk 0:02:18]} 16. Qxd3 {[%clk 0:02:19]}  Qb8 {[%clk 0:02:18]} 17. h5 {[%clk 0:02:18]}  h6 {[%clk 0:02:18]} 18. Kb1 {[%clk 0:02:13]}  Qb5 {[%clk 0:02:18]} 19. Nc1 {[%clk 0:02:10]}  O-O-O {[%clk 0:02:09]} 20. a3 {[%clk 0:02:06]}  Rhe8 {[%clk 0:01:55]} 21. axb4 {[%clk 0:02:03]}  axb4 {[%clk 0:01:55]} 22. Ba1 {[%clk 0:01:46]}  Qb7 {[%clk 0:01:52]} 23. Na2 {[%clk 0:01:30]}  e5 {[%clk 0:01:50]} 24. Qd2 {[%clk 0:01:23]}  e4 {[%clk 0:01:50]} 25. f4 {[%clk 0:01:15]}  Nxg4 {[%clk 0:01:50]} 26. Rh3 {[%clk 0:00:50]}  f5 {[%clk 0:01:48]} 27. Qxb4 {[%clk 0:00:43]}  Nf2 {[%clk 0:01:45]} 28. Rdh1 {[%clk 0:00:32]}  Qxb4 {[%clk 0:01:36]} 29. Nxb4 {[%clk 0:00:32]}  Kb7 {[%clk 0:01:36]} 30. Na2 {[%clk 0:00:27]}  Nf6 {[%clk 0:01:32]} 31. b4 {[%clk 0:00:26]}  N6g4 {[%clk 0:01:25]} 32. R1h2 {[%clk 0:00:18]}  Nxh2 {[%clk 0:01:05]} 33. Rxh2 {[%clk 0:00:18]}  Ng4 {[%clk 0:01:06]} 34. Rh3 {[%clk 0:00:18]}  Rg8 {[%clk 0:00:41]} 35. N4c3 {[%clk 0:00:18]}  g6 {[%clk 0:00:40]} 36. hxg6 {[%clk 0:00:18]}  Rxg6 {[%clk 0:00:41]} 37. Kc2 {[%clk 0:00:15]}  Nf2 {[%clk 0:00:39]} 38. Rh5 {[%clk 0:00:14]}  Rg2 {[%clk 0:00:38]} 39. Kb3 {[%clk 0:00:14]}  Ng4 {[%clk 0:00:36]} 40. Rxf5 {[%clk 0:00:13]}  Nxe3 {[%clk 0:00:36]} 41. Rf7 {[%clk 0:00:13]}  Nc4 {[%clk 0:00:29]} 42. b5 {[%clk 0:00:13]}  e3 {[%clk 0:00:23]} 43. bxc6+ {[%clk 0:00:11]}  Kxc6 {[%clk 0:00:23]} 44. Nb4+ {[%clk 0:00:11]}  Kb7 {[%clk 0:00:23]} 45. Nbxd5 {[%clk 0:00:11]}  Na5+ {[%clk 0:00:18]} 46. Ka4 {[%clk 0:00:11]}  Rc8 {[%clk 0:00:15]} 47. Re7 {[%clk 0:00:10]}  Nc6 {[%clk 0:00:15]} 48. Rxe3 {[%clk 0:00:10]}  Ra8+ {[%clk 0:00:16]} 49. Kb5 {[%clk 0:00:10]}  Rxa1 {[%clk 0:00:14]} 50. Kc4 {[%clk 0:00:05]}  Na5+ {[%clk 0:00:10]} 51. Kd3 {[%clk 0:00:05]}  Nc6 {[%clk 0:00:10]} 52. Re6 {[%clk 0:00:05]}  Ra6 {[%clk 0:00:08]} 53. f5 {[%clk 0:00:02]}  Rg3+ {[%clk 0:00:07]} 54. Kc4 {[%clk 0:00:01]}  Rg4 {[%clk 0:00:07]} 55. Nb5 {[%clk 0:00:01]}  Na5+ {[%clk 0:00:07]} 56. Kd3 {[%clk 0:00:01]}  Rxe6 {[%clk 0:00:07]} 57. fxe6 {[%clk 0:00:01]}  Nc6 {[%clk 0:00:07]} 58. e7 {[%clk 0:00:02]}  Nxe7 {[%clk 0:00:07]} 59. Nxe7 {[%clk 0:00:02]}  Bd8 {[%clk 0:00:07]} 60. Nf5 {[%clk 0:00:01]}  h5 {[%clk 0:00:08]} 61. d5 {[%clk 0:00:02]}  h4 {[%clk 0:00:08]} 62. c6+ {[%clk 0:00:01]}  Kb6 {[%clk 0:00:08]} 63. Nbd4 {[%clk 0:00:01]}  h3 {[%clk 0:00:08]} 64. d6 {[%clk 0:00:02]}  h2 {[%clk 0:00:09]} 65. c7 {[%clk 0:00:01]}  Bxc7 {[%clk 0:00:09]} 66. dxc7 {[%clk 0:00:02]}  Kxc7 {[%clk 0:00:09]} 67. Ne3 {[%clk 0:00:02]}  h1=Q {[%clk 0:00:07]} 68. Nxg4 {[%clk 0:00:02]}  Qd1+ {[%clk 0:00:07]} 69. Ke4 {[%clk 0:00:02]}  Qxg4+ {[%clk 0:00:08]} 70. Ke5 {[%clk 0:00:03]}  Qg5+ {[%clk 0:00:08]} 71. Nf5 {[%clk 0:00:04]}  Kd7 {[%clk 0:00:09]} 72. Ke4 {[%clk 0:00:04]}  Ke6 {[%clk 0:00:09]} 73. Ne3 {[%clk 0:00:05]}  Qh4+ {[%clk 0:00:09]} 74. Kd3 {[%clk 0:00:05]}  Ke5 {[%clk 0:00:07]} 75. Nc4+ {[%clk 0:00:06]}  Kd5 {[%clk 0:00:08]} 76. Ne3+ {[%clk 0:00:07]}  Kc5 {[%clk 0:00:09]} 77. Ke2 {[%clk 0:00:05]}  Qf4 {[%clk 0:00:07]} 78. Kd3 {[%clk 0:00:05]}  Qf3 {[%clk 0:00:07]} 79. Kd2 {[%clk 0:00:05]}  Kd4 {[%clk 0:00:08]} 80. Nc2+ {[%clk 0:00:05]}  Ke4 {[%clk 0:00:09]} 81. Kc1 {[%clk 0:00:05]}  Qc3 {[%clk 0:00:07]} 82. Kd1 {[%clk 0:00:04]}  Kd3 {[%clk 0:00:05]} 83. Ne1+ {[%clk 0:00:04]}  Ke3 {[%clk 0:00:06]} 84. Nc2+ {[%clk 0:00:05]}  Kf2 {[%clk 0:00:06]} 85. Kc1 {[%clk 0:00:02]}  Ke2 {[%clk 0:00:07]} 86. Kb1 {[%clk 0:00:02]}  Kd2 {[%clk 0:00:07]} 87. Na1 {[%clk 0:00:02]}  Qb4+ {[%clk 0:00:08]} 88. Ka2 {[%clk 0:00:02]}  Kc3 {[%clk 0:00:08]} 0-1


[Site "https://www.chess.com"]

[Event "Titled Tuesday Blitz July 26 Early 2022"]
[White "Rychagov, Andrey"]
[Black "Ambartsumova, Karina"]
[WhiteFideId "4119932"]
[BlackFideId "4166299"]
[WhiteElo "2481"]
[BlackElo "2262"]
[Result "0-1"]
[Round "09"]
[TimeControl "180+1"]
[Date "2022.07.26"]
[WhiteClock "0:00:16"]
[BlackClock "0:00:19"]

1. d4 {[%clk 0:03:00]}  Nf6 {[%clk 0:02:59]} 2. c4 {[%clk 0:03:00]}  g6 {[%clk 0:02:58]} 3. Nc3 {[%clk 0:03:00]}  Bg7 {[%clk 0:02:59]} 4. e4 {[%clk 0:02:59]}  d6 {[%clk 0:02:59]} 5. Nf3 {[%clk 0:03:00]}  O-O {[%clk 0:02:59]} 6. Be2 {[%clk 0:03:00]}  e5 {[%clk 0:02:57]} 7. O-O {[%clk 0:03:00]}  Nc6 {[%clk 0:02:57]} 8. d5 {[%clk 0:02:57]}  Ne7 {[%clk 0:02:57]} 9. Ne1 {[%clk 0:02:57]}  Nd7 {[%clk 0:02:57]} 10. Nd3 {[%clk 0:02:58]}  f5 {[%clk 0:02:56]} 11. Bd2 {[%clk 0:02:58]}  f4 {[%clk 0:02:56]} 12. b4 {[%clk 0:02:55]}  g5 {[%clk 0:02:51]} 13. c5 {[%clk 0:02:55]}  Nf6 {[%clk 0:02:52]} 14. f3 {[%clk 0:02:53]}  Ng6 {[%clk 0:02:50]} 15. Rc1 {[%clk 0:02:52]}  a6 {[%clk 0:02:48]} 16. a4 {[%clk 0:02:51]}  Rf7 {[%clk 0:02:46]} 17. a5 {[%clk 0:02:50]}  h5 {[%clk 0:02:43]} 18. cxd6 {[%clk 0:02:48]}  cxd6 {[%clk 0:02:43]} 19. Na4 {[%clk 0:02:49]}  g4 {[%clk 0:02:26]} 20. Nb6 {[%clk 0:02:48]}  gxf3 {[%clk 0:02:26]} 21. gxf3 {[%clk 0:02:43]}  Bh3 {[%clk 0:02:16]} 22. Nxa8 {[%clk 0:02:39]}  Nxe4 {[%clk 0:01:09]} 23. Kh1 {[%clk 0:02:18]}  Bxf1 {[%clk 0:01:02]} 24. Bxf1 {[%clk 0:02:06]}  Ng3+ {[%clk 0:00:25]} 25. hxg3 {[%clk 0:02:05]}  fxg3 {[%clk 0:00:26]} 26. Bh3 {[%clk 0:02:01]}  Qh4 {[%clk 0:00:25]} 27. Kg2 {[%clk 0:01:55]}  e4 {[%clk 0:00:26]} 28. Ne1 {[%clk 0:01:46]}  Ne5 {[%clk 0:00:26]} 29. f4 {[%clk 0:01:36]}  Ng4 {[%clk 0:00:26]} 30. Rc7 {[%clk 0:00:55]}  Nf2 {[%clk 0:00:24]} 31. Be6 {[%clk 0:00:46]}  Qh2+ {[%clk 0:00:22]} 32. Kf1 {[%clk 0:00:46]}  Nxd1 {[%clk 0:00:20]} 33. Bxf7+ {[%clk 0:00:23]}  Kh7 {[%clk 0:00:20]} 34. Ng2 {[%clk 0:00:18]}  Qh1+ {[%clk 0:00:20]} 35. Ke2 {[%clk 0:00:18]}  Qxg2+ {[%clk 0:00:21]} 36. Kxd1 {[%clk 0:00:18]}  Qf3+ {[%clk 0:00:21]} 37. Kc2 {[%clk 0:00:18]}  g2 {[%clk 0:00:21]} 38. f5 {[%clk 0:00:18]}  g1=Q {[%clk 0:00:21]} 39. Bg6+ {[%clk 0:00:18]}  Kg8 {[%clk 0:00:20]} 40. Rc8+ {[%clk 0:00:16]}  Bf8 {[%clk 0:00:19]} 0-1


[Site "https://www.chess.com"]

[Event "Titled Tuesday Blitz July 26 Early 2022"]
[White "Schwabeneder, Florian"]
[Black "Fajdetic, Hrvoje"]
[WhiteFideId "1626191"]
[BlackFideId "14501945"]
[WhiteElo "2275"]
[BlackElo "2172"]
[Result "1-0"]
[Round "09"]
[TimeControl "180+1"]
[Date "2022.07.26"]
[WhiteClock "0:00:17"]
[BlackClock "0:00:10"]

1. e4 {[%clk 0:03:00]}  d5 {[%clk 0:02:56]} 2. exd5 {[%clk 0:03:01]}  Qxd5 {[%clk 0:02:56]} 3. Nf3 {[%clk 0:03:01]}  Bg4 {[%clk 0:02:55]} 4. Be2 {[%clk 0:03:01]}  Nf6 {[%clk 0:02:54]} 5. h3 {[%clk 0:03:02]}  Bh5 {[%clk 0:02:54]} 6. d4 {[%clk 0:03:01]}  e6 {[%clk 0:02:54]} 7. c4 {[%clk 0:03:01]}  Qd6 {[%clk 0:02:52]} 8. Nc3 {[%clk 0:02:58]}  c6 {[%clk 0:02:51]} 9. Qb3 {[%clk 0:02:51]}  Qc7 {[%clk 0:02:51]} 10. Bf4 {[%clk 0:02:44]}  Qb6 {[%clk 0:02:50]} 11. O-O {[%clk 0:02:26]}  Qxb3 {[%clk 0:02:44]} 12. axb3 {[%clk 0:02:25]}  Nbd7 {[%clk 0:02:44]} 13. Rfe1 {[%clk 0:02:10]}  Be7 {[%clk 0:02:44]} 14. d5 {[%clk 0:01:40]}  exd5 {[%clk 0:02:26]} 15. cxd5 {[%clk 0:01:41]}  O-O {[%clk 0:02:25]} 16. dxc6 {[%clk 0:01:39]}  bxc6 {[%clk 0:02:26]} 17. g4 {[%clk 0:01:35]}  Bg6 {[%clk 0:02:25]} 18. Ba6 {[%clk 0:01:27]}  Bc5 {[%clk 0:01:54]} 19. Bb7 {[%clk 0:01:25]}  Rae8 {[%clk 0:01:36]} 20. Bxc6 {[%clk 0:01:25]}  Rxe1+ {[%clk 0:01:36]} 21. Rxe1 {[%clk 0:01:24]}  Nb6 {[%clk 0:01:30]} 22. Ne5 {[%clk 0:01:17]}  Bc2 {[%clk 0:01:26]} 23. Na4 {[%clk 0:01:09]}  Bb4 {[%clk 0:01:16]} 24. Rc1 {[%clk 0:00:29]}  Bxb3 {[%clk 0:01:14]} 25. Nc5 {[%clk 0:00:29]}  Bd5 {[%clk 0:01:08]} 26. Bb5 {[%clk 0:00:24]}  Rc8 {[%clk 0:00:50]} 27. Ned3 {[%clk 0:00:24]}  Bxc5 {[%clk 0:00:32]} 28. Rxc5 {[%clk 0:00:25]}  Rxc5 {[%clk 0:00:30]} 29. Nxc5 {[%clk 0:00:26]}  Ne4 {[%clk 0:00:22]} 30. Nxe4 {[%clk 0:00:23]}  Bxe4 {[%clk 0:00:23]} 31. Bb8 {[%clk 0:00:21]}  Nc8 {[%clk 0:00:17]} 32. Ba6 {[%clk 0:00:20]}  Nb6 {[%clk 0:00:11]} 33. Bxa7 {[%clk 0:00:18]}  Na4 {[%clk 0:00:10]} 34. Bd4 {[%clk 0:00:18]}  f6 {[%clk 0:00:10]} 35. b3 {[%clk 0:00:17]} 1-0


[Site "https://www.chess.com"]

[Event "Titled Tuesday Blitz July 26 Early 2022"]
[White "Shtyka, Sergey"]
[Black "Bryakin, Mikhail"]
[WhiteFideId "4138465"]
[BlackFideId "4165314"]
[WhiteElo "1995"]
[BlackElo "2422"]
[Result "1-0"]
[Round "09"]
[TimeControl "180+1"]
[Date "2022.07.27"]
[WhiteClock "0:00:07"]
[BlackClock "0:00:05"]

1. e4 {[%clk 0:03:00]}  g6 {[%clk 0:02:50]} 2. d4 {[%clk 0:03:00]}  Bg7 {[%clk 0:02:51]} 3. Nc3 {[%clk 0:03:01]}  d5 {[%clk 0:02:44]} 4. exd5 {[%clk 0:03:00]}  Nf6 {[%clk 0:02:43]} 5. Nf3 {[%clk 0:02:58]}  Nxd5 {[%clk 0:02:41]} 6. Nxd5 {[%clk 0:02:48]}  Qxd5 {[%clk 0:02:42]} 7. c4 {[%clk 0:02:44]}  Qd8 {[%clk 0:02:42]} 8. Be2 {[%clk 0:02:42]}  Bg4 {[%clk 0:02:36]} 9. Be3 {[%clk 0:02:40]}  Nc6 {[%clk 0:02:36]} 10. O-O {[%clk 0:02:30]}  O-O {[%clk 0:02:34]} 11. d5 {[%clk 0:02:29]}  Bxf3 {[%clk 0:02:15]} 12. Bxf3 {[%clk 0:02:26]}  Ne5 {[%clk 0:02:16]} 13. Be2 {[%clk 0:02:24]}  c6 {[%clk 0:02:11]} 14. dxc6 {[%clk 0:02:12]}  Nxc6 {[%clk 0:02:06]} 15. Qxd8 {[%clk 0:02:07]}  Rfxd8 {[%clk 0:02:03]} 16. Bf3 {[%clk 0:01:57]}  Rac8 {[%clk 0:01:35]} 17. Rad1 {[%clk 0:01:53]}  Be5 {[%clk 0:01:14]} 18. b3 {[%clk 0:01:49]}  Bb8 {[%clk 0:01:08]} 19. Rxd8+ {[%clk 0:01:47]}  Rxd8 {[%clk 0:01:06]} 20. Rd1 {[%clk 0:01:47]}  Rxd1+ {[%clk 0:01:02]} 21. Bxd1 {[%clk 0:01:48]}  f5 {[%clk 0:01:00]} 22. Bf3 {[%clk 0:01:46]}  Kf7 {[%clk 0:00:59]} 23. Bxc6 {[%clk 0:01:39]}  bxc6 {[%clk 0:00:59]} 24. Kf1 {[%clk 0:01:38]}  e5 {[%clk 0:00:59]} 25. f3 {[%clk 0:01:38]}  Ke6 {[%clk 0:00:58]} 26. Ke2 {[%clk 0:01:39]}  a6 {[%clk 0:00:56]} 27. Kd3 {[%clk 0:01:39]}  Bd6 {[%clk 0:00:57]} 28. h3 {[%clk 0:01:36]}  h5 {[%clk 0:00:56]} 29. Bf2 {[%clk 0:01:36]}  Bb4 {[%clk 0:00:56]} 30. Be3 {[%clk 0:01:33]}  Be1 {[%clk 0:00:55]} 31. Bg5 {[%clk 0:01:28]}  Bb4 {[%clk 0:00:55]} 32. Be3 {[%clk 0:01:27]}  Kd6 {[%clk 0:00:56]} 33. Bg5 {[%clk 0:01:26]}  Bc5 {[%clk 0:00:51]} 34. Bd2 {[%clk 0:01:25]}  Bg1 {[%clk 0:00:50]} 35. Bg5 {[%clk 0:01:24]}  Bf2 {[%clk 0:00:47]} 36. Bd2 {[%clk 0:01:24]}  Kc5 {[%clk 0:00:47]} 37. Bg5 {[%clk 0:01:20]}  Kb4 {[%clk 0:00:42]} 38. Bf6 {[%clk 0:01:16]}  Bd4 {[%clk 0:00:38]} 39. f4 {[%clk 0:01:09]}  c5 {[%clk 0:00:34]} 40. Bxe5 {[%clk 0:01:08]}  Bg1 {[%clk 0:00:30]} 41. Kc2 {[%clk 0:01:06]}  Ka3 {[%clk 0:00:27]} 42. Kb1 {[%clk 0:01:02]}  Be3 {[%clk 0:00:26]} 43. Bd6 {[%clk 0:00:56]}  Kb4 {[%clk 0:00:25]} 44. Kc2 {[%clk 0:00:55]}  Ka3 {[%clk 0:00:26]} 45. Kb1 {[%clk 0:00:52]}  Kb4 {[%clk 0:00:26]} 46. Be5 {[%clk 0:00:45]}  Ka3 {[%clk 0:00:22]} 47. Bb2+ {[%clk 0:00:36]}  Kb4 {[%clk 0:00:22]} 48. Bc1 {[%clk 0:00:37]}  Bxc1 {[%clk 0:00:08]} 49. Kxc1 {[%clk 0:00:37]}  Kc3 {[%clk 0:00:09]} 50. g3 {[%clk 0:00:31]}  h4 {[%clk 0:00:05]} 51. gxh4 {[%clk 0:00:29]}  a5 {[%clk 0:00:05]} 52. Kb1 {[%clk 0:00:22]}  Kd3 {[%clk 0:00:06]} 53. Kb2 {[%clk 0:00:21]}  Ke3 {[%clk 0:00:06]} 54. a3 {[%clk 0:00:20]}  Kxf4 {[%clk 0:00:06]} 55. b4 {[%clk 0:00:20]}  cxb4 {[%clk 0:00:06]} 56. axb4 {[%clk 0:00:21]}  axb4 {[%clk 0:00:06]} 57. Kb3 {[%clk 0:00:21]}  Ke4 {[%clk 0:00:07]} 58. Kxb4 {[%clk 0:00:19]}  f4 {[%clk 0:00:07]} 59. c5 {[%clk 0:00:20]}  Kd5 {[%clk 0:00:04]} 60. c6 {[%clk 0:00:09]}  f3 {[%clk 0:00:04]} 61. c7 {[%clk 0:00:08]}  f2 {[%clk 0:00:05]} 62. c8=Q {[%clk 0:00:09]}  f1=Q {[%clk 0:00:05]} 63. Qd7+ {[%clk 0:00:06]}  Ke4 {[%clk 0:00:02]} 64. Qg4+ {[%clk 0:00:06]}  Ke5 {[%clk 0:00:02]} 65. Qxg6 {[%clk 0:00:04]}  Qxh3 {[%clk 0:00:03]} 66. Qg5+ {[%clk 0:00:03]}  Ke6 {[%clk 0:00:03]} 67. Qg6+ {[%clk 0:00:03]}  Ke5 {[%clk 0:00:03]} 68. Qg5+ {[%clk 0:00:04]}  Kd4 {[%clk 0:00:03]} 69. Qf4+ {[%clk 0:00:04]}  Kd3 {[%clk 0:00:03]} 70. Qc4+ {[%clk 0:00:03]}  Kd2 {[%clk 0:00:03]} 71. Qd4+ {[%clk 0:00:03]}  Ke2 {[%clk 0:00:03]} 72. Qc4+ {[%clk 0:00:03]}  Ke1 {[%clk 0:00:02]} 73. Qc3+ {[%clk 0:00:03]}  Qxc3+ {[%clk 0:00:02]} 74. Kxc3 {[%clk 0:00:04]}  Ke2 {[%clk 0:00:03]} 75. h5 {[%clk 0:00:04]}  Ke3 {[%clk 0:00:04]} 76. h6 {[%clk 0:00:05]}  Ke4 {[%clk 0:00:05]} 77. h7 {[%clk 0:00:06]}  Ke5 {[%clk 0:00:05]} 78. h8=Q+ {[%clk 0:00:07]} 1-0


[Site "https://www.chess.com"]

[Event "Titled Tuesday Blitz July 26 Early 2022"]
[White "Skliarov, Viktor"]
[Black "Seo, Jung Min"]
[WhiteFideId "14106736"]
[BlackFideId "1734687"]
[WhiteElo "2257"]
[BlackElo "2414"]
[Result "0-1"]
[Round "09"]
[TimeControl "180+1"]
[Date "2022.07.26"]
[WhiteClock "0:00:02"]
[BlackClock "0:01:21"]

1. e4 {[%clk 0:03:00]}  c5 {[%clk 0:02:59]} 2. Nf3 {[%clk 0:02:59]}  d6 {[%clk 0:03:00]} 3. d4 {[%clk 0:02:58]}  Nf6 {[%clk 0:03:00]} 4. Nc3 {[%clk 0:02:58]}  cxd4 {[%clk 0:03:00]} 5. Qxd4 {[%clk 0:02:57]}  a6 {[%clk 0:02:58]} 6. Be3 {[%clk 0:02:56]}  Nc6 {[%clk 0:02:57]} 7. Qd2 {[%clk 0:02:56]}  Bg4 {[%clk 0:02:56]} 8. O-O-O {[%clk 0:02:54]}  e6 {[%clk 0:02:55]} 9. h3 {[%clk 0:02:20]}  Bh5 {[%clk 0:02:55]} 10. g4 {[%clk 0:02:21]}  Bg6 {[%clk 0:02:55]} 11. Bd3 {[%clk 0:02:21]}  Qa5 {[%clk 0:02:52]} 12. Kb1 {[%clk 0:02:18]}  Be7 {[%clk 0:02:51]} 13. Nd4 {[%clk 0:01:54]}  Nxd4 {[%clk 0:02:32]} 14. Bxd4 {[%clk 0:01:53]}  b5 {[%clk 0:02:31]} 15. f4 {[%clk 0:01:16]}  b4 {[%clk 0:02:28]} 16. f5 {[%clk 0:01:16]}  bxc3 {[%clk 0:02:25]} 17. Bxc3 {[%clk 0:01:17]}  Qc7 {[%clk 0:02:25]} 18. fxg6 {[%clk 0:00:57]}  hxg6 {[%clk 0:02:26]} 19. h4 {[%clk 0:00:40]}  Nxg4 {[%clk 0:02:22]} 20. Bxg7 {[%clk 0:00:39]}  Rh7 {[%clk 0:02:10]} 21. Bc3 {[%clk 0:00:38]}  Bf6 {[%clk 0:02:08]} 22. Bxf6 {[%clk 0:00:33]}  Nxf6 {[%clk 0:02:08]} 23. Qg5 {[%clk 0:00:30]}  Qe7 {[%clk 0:02:03]} 24. e5 {[%clk 0:00:30]}  dxe5 {[%clk 0:01:57]} 25. Qxe5 {[%clk 0:00:31]}  Rh5 {[%clk 0:01:57]} 26. Qg3 {[%clk 0:00:21]}  Kf8 {[%clk 0:01:55]} 27. Rdf1 {[%clk 0:00:12]}  Kg7 {[%clk 0:01:49]} 28. Rhg1 {[%clk 0:00:11]}  Rh6 {[%clk 0:01:46]} 29. Qe5 {[%clk 0:00:11]}  Rh5 {[%clk 0:01:38]} 30. Qc3 {[%clk 0:00:06]}  e5 {[%clk 0:01:36]} 31. Qc6 {[%clk 0:00:06]}  Rd8 {[%clk 0:01:31]} 32. Rg5 {[%clk 0:00:05]}  Rxh4 {[%clk 0:01:29]} 33. Rfg1 {[%clk 0:00:05]}  e4 {[%clk 0:01:27]} 34. Bc4 {[%clk 0:00:03]}  Rd6 {[%clk 0:01:27]} 35. Qc8 {[%clk 0:00:03]}  e3 {[%clk 0:01:24]} 36. Bxf7 {[%clk 0:00:02]}  Qxf7 {[%clk 0:01:21]} 37. Rxg6+ {[%clk 0:00:02]}  Qxg6 {[%clk 0:01:21]} 38. Rxg6+ {[%clk 0:00:02]}  Kxg6 {[%clk 0:01:22]} 39. a4 {[%clk 0:00:02]}  e2 {[%clk 0:01:21]} 0-1


[Site "https://www.chess.com"]

[Event "Titled Tuesday Blitz July 26 Early 2022"]
[White "Vlassov, Nikolai"]
[Black "Ladan, Nicholas"]
[WhiteFideId "4103360"]
[BlackFideId "30918855"]
[WhiteElo "2324"]
[BlackElo "2167"]
[Result "1-0"]
[Round "09"]
[TimeControl "180+1"]
[Date "2022.07.27"]
[WhiteClock "0:00:31"]
[BlackClock "0:00:04"]

1. e4 {[%clk 0:03:00]}  e5 {[%clk 0:02:59]} 2. Bc4 {[%clk 0:03:00]}  Nf6 {[%clk 0:02:58]} 3. d3 {[%clk 0:03:00]}  Nc6 {[%clk 0:02:58]} 4. Nf3 {[%clk 0:03:00]}  h6 {[%clk 0:02:53]} 5. Nc3 {[%clk 0:02:57]}  d6 {[%clk 0:02:51]} 6. h3 {[%clk 0:02:48]}  g6 {[%clk 0:02:49]} 7. Be3 {[%clk 0:02:47]}  Bg7 {[%clk 0:02:48]} 8. Qd2 {[%clk 0:02:47]}  a6 {[%clk 0:02:30]} 9. O-O-O {[%clk 0:02:29]}  Na5 {[%clk 0:02:29]} 10. a3 {[%clk 0:02:22]}  Nxc4 {[%clk 0:02:23]} 11. dxc4 {[%clk 0:02:22]}  Be6 {[%clk 0:02:23]} 12. c5 {[%clk 0:02:20]}  dxc5 {[%clk 0:02:19]} 13. Qxd8+ {[%clk 0:02:08]}  Rxd8 {[%clk 0:02:18]} 14. Bxc5 {[%clk 0:02:08]}  Nd7 {[%clk 0:02:15]} 15. Be3 {[%clk 0:01:51]}  f5 {[%clk 0:02:03]} 16. Nd5 {[%clk 0:01:33]}  Bxd5 {[%clk 0:01:42]} 17. Rxd5 {[%clk 0:01:32]}  Ke7 {[%clk 0:01:38]} 18. Rhd1 {[%clk 0:01:31]}  c6 {[%clk 0:01:27]} 19. Rd6 {[%clk 0:01:26]}  Bf6 {[%clk 0:01:17]} 20. exf5 {[%clk 0:01:03]}  gxf5 {[%clk 0:01:16]} 21. g3 {[%clk 0:00:54]}  c5 {[%clk 0:00:42]} 22. R6d5 {[%clk 0:00:51]}  b6 {[%clk 0:00:37]} 23. c4 {[%clk 0:00:48]}  Ke6 {[%clk 0:00:32]} 24. Rd6+ {[%clk 0:00:43]}  Ke7 {[%clk 0:00:32]} 25. b4 {[%clk 0:00:44]}  e4 {[%clk 0:00:24]} 26. Ne1 {[%clk 0:00:41]}  Be5 {[%clk 0:00:23]} 27. R6d5 {[%clk 0:00:38]}  Ke6 {[%clk 0:00:18]} 28. Ng2 {[%clk 0:00:36]}  Rh7 {[%clk 0:00:17]} 29. Nf4+ {[%clk 0:00:36]}  Bxf4 {[%clk 0:00:17]} 30. Bxf4 {[%clk 0:00:36]}  Re7 {[%clk 0:00:12]} 31. Bxh6 {[%clk 0:00:35]}  cxb4 {[%clk 0:00:06]} 32. Bg5 {[%clk 0:00:33]}  Ree8 {[%clk 0:00:03]} 33. Bxd8 {[%clk 0:00:33]}  Rxd8 {[%clk 0:00:04]} 34. axb4 {[%clk 0:00:33]}  a5 {[%clk 0:00:02]} 35. bxa5 {[%clk 0:00:33]}  bxa5 {[%clk 0:00:03]} 36. c5 {[%clk 0:00:33]}  Rc8 {[%clk 0:00:02]} 37. Rxd7 {[%clk 0:00:32]}  Rxc5+ {[%clk 0:00:03]} 38. Kb2 {[%clk 0:00:33]}  Rb5+ {[%clk 0:00:03]} 39. Ka3 {[%clk 0:00:32]}  Rb7 {[%clk 0:00:04]} 40. Rxb7 {[%clk 0:00:31]} 1-0


[Site "https://www.chess.com"]

[Event "Titled Tuesday Blitz July 26 Early 2022"]
[White "Xu, Yi"]
[Black "Richter, Nils"]
[WhiteFideId "8605564"]
[BlackFideId "12990809"]
[WhiteElo "2471"]
[BlackElo "2311"]
[Result "1/2-1/2"]
[Round "09"]
[TimeControl "180+1"]
[Date "2022.07.26"]
[WhiteClock "0:00:02"]
[BlackClock "0:00:04"]

1. e4 {[%clk 0:02:57]}  c5 {[%clk 0:02:59]} 2. Nf3 {[%clk 0:02:57]}  d6 {[%clk 0:03:00]} 3. d4 {[%clk 0:02:57]}  cxd4 {[%clk 0:03:01]} 4. Nxd4 {[%clk 0:02:58]}  Nf6 {[%clk 0:03:02]} 5. Nc3 {[%clk 0:02:57]}  a6 {[%clk 0:03:02]} 6. f3 {[%clk 0:02:57]}  e5 {[%clk 0:03:01]} 7. Nb3 {[%clk 0:02:58]}  Be6 {[%clk 0:03:01]} 8. Be3 {[%clk 0:02:57]}  h5 {[%clk 0:03:01]} 9. Nd5 {[%clk 0:02:55]}  Bxd5 {[%clk 0:03:00]} 10. exd5 {[%clk 0:02:55]}  Nbd7 {[%clk 0:03:01]} 11. Qd2 {[%clk 0:02:54]}  g6 {[%clk 0:03:01]} 12. O-O-O {[%clk 0:02:50]}  Nb6 {[%clk 0:02:57]} 13. Qa5 {[%clk 0:02:48]}  Nfd7 {[%clk 0:02:39]} 14. Kb1 {[%clk 0:02:32]}  Bh6 {[%clk 0:02:38]} 15. Bf2 {[%clk 0:02:29]}  O-O {[%clk 0:02:36]} 16. g4 {[%clk 0:02:14]}  hxg4 {[%clk 0:02:34]} 17. fxg4 {[%clk 0:02:15]}  Rc8 {[%clk 0:02:33]} 18. h4 {[%clk 0:02:09]}  Bf4 {[%clk 0:02:32]} 19. g5 {[%clk 0:02:02]}  Nc4 {[%clk 0:02:28]} 20. Qe1 {[%clk 0:01:39]}  b5 {[%clk 0:02:21]} 21. h5 {[%clk 0:01:39]}  a5 {[%clk 0:02:19]} 22. hxg6 {[%clk 0:01:20]}  fxg6 {[%clk 0:02:20]} 23. Bd3 {[%clk 0:01:17]}  a4 {[%clk 0:02:18]} 24. Nd4 {[%clk 0:01:11]}  Nc5 {[%clk 0:02:02]} 25. Nc6 {[%clk 0:00:59]}  Qb6 {[%clk 0:00:48]} 26. Bxc5 {[%clk 0:00:57]}  Qxc5 {[%clk 0:00:47]} 27. Qe4 {[%clk 0:00:45]}  Rf5 {[%clk 0:00:15]} 28. Ne7+ {[%clk 0:00:28]}  Kf7 {[%clk 0:00:16]} 29. Nxf5 {[%clk 0:00:28]}  Qb4 {[%clk 0:00:17]} 30. Bxc4 {[%clk 0:00:26]}  bxc4 {[%clk 0:00:17]} 31. Rh7+ {[%clk 0:00:23]}  Ke8 {[%clk 0:00:16]} 32. Rh8+ {[%clk 0:00:20]}  Kd7 {[%clk 0:00:16]} 33. Rxc8 {[%clk 0:00:20]}  a3 {[%clk 0:00:15]} 34. Rb8 {[%clk 0:00:07]}  Qxb8 {[%clk 0:00:15]} 35. b3 {[%clk 0:00:07]}  gxf5 {[%clk 0:00:08]} 36. Qxf5+ {[%clk 0:00:07]}  Kc7 {[%clk 0:00:09]} 37. Qe4 {[%clk 0:00:07]}  cxb3 {[%clk 0:00:08]} 38. Qc4+ {[%clk 0:00:07]}  Kd7 {[%clk 0:00:07]} 39. Qxb3 {[%clk 0:00:07]}  Qc7 {[%clk 0:00:07]} 40. g6 {[%clk 0:00:07]}  Ke7 {[%clk 0:00:06]} 41. g7 {[%clk 0:00:07]}  Kf7 {[%clk 0:00:07]} 42. Rg1 {[%clk 0:00:07]}  Kg8 {[%clk 0:00:06]} 43. Qb5 {[%clk 0:00:07]}  Qd8 {[%clk 0:00:03]} 44. c4 {[%clk 0:00:05]}  Be3 {[%clk 0:00:03]} 45. Rg3 {[%clk 0:00:04]}  Bf4 {[%clk 0:00:02]} 46. Rg2 {[%clk 0:00:04]}  Qc8 {[%clk 0:00:03]} 47. Qc6 {[%clk 0:00:03]}  Qf5+ {[%clk 0:00:03]} 48. Rc2 {[%clk 0:00:03]}  Kxg7 {[%clk 0:00:02]} 49. Qxd6 {[%clk 0:00:03]}  Qd3 {[%clk 0:00:03]} 50. Qe7+ {[%clk 0:00:02]}  Kg6 {[%clk 0:00:04]} 51. Qe6+ {[%clk 0:00:02]}  Kg5 {[%clk 0:00:04]} 52. Qe7+ {[%clk 0:00:03]}  Kg6 {[%clk 0:00:05]} 53. Qe8+ {[%clk 0:00:03]}  Kg7 {[%clk 0:00:04]} 54. Qe7+ {[%clk 0:00:02]}  Kg6 {[%clk 0:00:04]} 1/2-1/2


[Site "https://www.chess.com"]